[Event "Titled Tuesday Blitz March 07 Early 2023"]
[White "Bruned, Boris"]
[Black "Gontcharov, Vladislav"]
[WhiteFideId "621790"]
[BlackFideId "4123492"]
[WhiteElo "2049"]
[BlackElo "2470"]
[Result "1/2-1/2"]
[Round "03"]
[TimeControl "180+2"]
[Date "2023.03.07"]
[WhiteClock "0:00:10"]
[BlackClock "0:00:35"]

1. b3 {[%clk 0:03:00]}  Nf6 {[%clk 0:02:56]} 2. Bb2 {[%clk 0:03:01]}  d5 {[%clk 0:02:55]} 3. e3 {[%clk 0:02:59]}  e6 {[%clk 0:02:55]} 4. Nf3 {[%clk 0:03:00]}  Be7 {[%clk 0:02:55]} 5. Be2 {[%clk 0:03:00]}  O-O {[%clk 0:02:55]} 6. O-O {[%clk 0:03:00]}  c5 {[%clk 0:02:55]} 7. d4 {[%clk 0:03:01]}  Nc6 {[%clk 0:02:54]} 8. Nbd2 {[%clk 0:03:00]}  b6 {[%clk 0:02:54]} 9. c4 {[%clk 0:03:01]}  Bb7 {[%clk 0:02:54]} 10. Rc1 {[%clk 0:03:01]}  cxd4 {[%clk 0:02:53]} 11. Nxd4 {[%clk 0:03:01]}  Nxd4 {[%clk 0:02:50]} 12. Bxd4 {[%clk 0:03:00]}  Bd6 {[%clk 0:02:49]} 13. Bb2 {[%clk 0:02:56]}  Qe7 {[%clk 0:02:46]} 14. cxd5 {[%clk 0:02:48]}  Bxd5 {[%clk 0:02:43]} 15. Nc4 {[%clk 0:02:48]}  Bc5 {[%clk 0:02:35]} 16. Bf3 {[%clk 0:02:36]}  Rfd8 {[%clk 0:02:29]} 17. Bxd5 {[%clk 0:02:28]}  Rxd5 {[%clk 0:02:21]} 18. Qe2 {[%clk 0:02:28]}  Rad8 {[%clk 0:02:17]} 19. Rfd1 {[%clk 0:02:27]}  h6 {[%clk 0:01:49]} 20. Rxd5 {[%clk 0:02:16]}  Rxd5 {[%clk 0:01:50]} 21. Rd1 {[%clk 0:02:15]}  Qd7 {[%clk 0:01:36]} 22. Rxd5 {[%clk 0:02:11]}  Qxd5 {[%clk 0:01:33]} 23. Bxf6 {[%clk 0:02:09]}  gxf6 {[%clk 0:01:33]} 24. a4 {[%clk 0:01:52]}  Kg7 {[%clk 0:01:32]} 25. h3 {[%clk 0:01:47]}  f5 {[%clk 0:01:29]} 26. Qb2+ {[%clk 0:01:13]}  f6 {[%clk 0:01:21]} 27. Qd2 {[%clk 0:01:07]}  Qxd2 {[%clk 0:01:19]} 28. Nxd2 {[%clk 0:01:08]}  Kf7 {[%clk 0:01:18]} 29. Kf1 {[%clk 0:01:07]}  e5 {[%clk 0:01:18]} 30. Ke2 {[%clk 0:01:01]}  Ke6 {[%clk 0:01:17]} 31. f3 {[%clk 0:00:57]}  Kd5 {[%clk 0:01:13]} 32. Kd3 {[%clk 0:00:57]}  a6 {[%clk 0:01:12]} 33. e4+ {[%clk 0:00:30]}  Ke6 {[%clk 0:01:07]} 34. g4 {[%clk 0:00:25]}  fxg4 {[%clk 0:01:05]} 35. fxg4 {[%clk 0:00:23]}  b5 {[%clk 0:01:03]} 36. axb5 {[%clk 0:00:21]}  axb5 {[%clk 0:01:03]} 37. Nf3 {[%clk 0:00:19]}  Kd6 {[%clk 0:00:57]} 38. Nh4 {[%clk 0:00:19]}  Kc6 {[%clk 0:00:56]} 39. Nf5 {[%clk 0:00:19]}  Bf8 {[%clk 0:00:57]} 40. Ne3 {[%clk 0:00:16]}  Be7 {[%clk 0:00:55]} 41. Nd5 {[%clk 0:00:16]}  Bd8 {[%clk 0:00:55]} 42. Ne3 {[%clk 0:00:15]}  Be7 {[%clk 0:00:55]} 43. Nf5 {[%clk 0:00:15]}  Bf8 {[%clk 0:00:54]} 44. Nh4 {[%clk 0:00:15]}  Kc5 {[%clk 0:00:54]} 45. Ng6 {[%clk 0:00:11]}  Bd6 {[%clk 0:00:53]} 46. Nh4 {[%clk 0:00:10]}  Kb4 {[%clk 0:00:53]} 47. Kc2 {[%clk 0:00:10]}  Ka3 {[%clk 0:00:51]} 48. Nf5 {[%clk 0:00:10]}  Bf8 {[%clk 0:00:51]} 49. Ne3 {[%clk 0:00:10]}  Be7 {[%clk 0:00:49]} 50. Nd5 {[%clk 0:00:10]}  Bd8 {[%clk 0:00:49]} 51. Ne3 {[%clk 0:00:10]}  Be7 {[%clk 0:00:47]} 52. Nf5 {[%clk 0:00:09]}  Bf8 {[%clk 0:00:47]} 53. Ne3 {[%clk 0:00:09]}  Kb4 {[%clk 0:00:42]} 54. Nd5+ {[%clk 0:00:09]}  Kc5 {[%clk 0:00:43]} 55. Kd3 {[%clk 0:00:10]}  Bg7 {[%clk 0:00:42]} 56. Ne3 {[%clk 0:00:09]}  Kb4 {[%clk 0:00:40]} 57. Kc2 {[%clk 0:00:09]}  Bf8 {[%clk 0:00:40]} 58. Nf5 {[%clk 0:00:09]}  Kc5 {[%clk 0:00:39]} 59. Kd3 {[%clk 0:00:09]}  Kb4 {[%clk 0:00:37]} 60. Kc2 {[%clk 0:00:09]}  Kc5 {[%clk 0:00:36]} 61. Kd3 {[%clk 0:00:10]}  Kb4 {[%clk 0:00:35]} 62. Kc2 {[%clk 0:00:10]} 1/2-1/2


[Site "https://www.chess.com"]

[Event "Titled Tuesday Blitz March 07 Early 2023"]
[White "Degenbaev, Aziz"]
[Black "Abrosimov, Vladimir"]
[WhiteFideId "13802640"]
[BlackFideId "4166892"]
[WhiteElo "2152"]
[BlackElo "2336"]
[Result "1-0"]
[Round "03"]
[TimeControl "180+2"]
[Date "2023.03.07"]
[WhiteClock "0:00:05"]
[BlackClock "0:00:01"]

1. e4 {[%clk 0:03:00]}  c5 {[%clk 0:02:59]} 2. Nf3 {[%clk 0:03:00]}  d6 {[%clk 0:03:00]} 3. d4 {[%clk 0:03:00]}  cxd4 {[%clk 0:03:00]} 4. Nxd4 {[%clk 0:03:01]}  Nf6 {[%clk 0:03:00]} 5. Nc3 {[%clk 0:03:02]}  a6 {[%clk 0:03:01]} 6. Be2 {[%clk 0:03:02]}  e5 {[%clk 0:03:01]} 7. Nb3 {[%clk 0:03:02]}  Be6 {[%clk 0:03:02]} 8. Bg5 {[%clk 0:03:02]}  Be7 {[%clk 0:03:02]} 9. Bxf6 {[%clk 0:03:00]}  Bxf6 {[%clk 0:03:02]} 10. Nd5 {[%clk 0:02:56]}  Nd7 {[%clk 0:02:55]} 11. Qd3 {[%clk 0:02:50]}  O-O {[%clk 0:02:51]} 12. Rd1 {[%clk 0:02:49]}  Nc5 {[%clk 0:02:45]} 13. Nxc5 {[%clk 0:02:38]}  dxc5 {[%clk 0:02:46]} 14. O-O {[%clk 0:02:33]}  Bxd5 {[%clk 0:02:31]} 15. Qxd5 {[%clk 0:02:31]}  Qb6 {[%clk 0:02:29]} 16. Qb3 {[%clk 0:02:22]}  Qxb3 {[%clk 0:02:28]} 17. axb3 {[%clk 0:02:22]}  Rfd8 {[%clk 0:02:27]} 18. Rd5 {[%clk 0:02:23]}  Rxd5 {[%clk 0:02:11]} 19. exd5 {[%clk 0:02:22]}  Kf8 {[%clk 0:02:12]} 20. Bd3 {[%clk 0:02:12]}  Ke7 {[%clk 0:02:10]} 21. Be4 {[%clk 0:02:10]}  g6 {[%clk 0:02:08]} 22. d6+ {[%clk 0:02:01]}  Kxd6 {[%clk 0:02:08]} 23. Bxb7 {[%clk 0:02:02]}  Ra7 {[%clk 0:02:08]} 24. Rd1+ {[%clk 0:02:02]}  Ke7 {[%clk 0:02:07]} 25. Bc6 {[%clk 0:01:56]}  Rc7 {[%clk 0:02:06]} 26. Ba4 {[%clk 0:01:51]}  Bg7 {[%clk 0:02:02]} 27. f3 {[%clk 0:01:34]}  f5 {[%clk 0:02:01]} 28. Kf2 {[%clk 0:01:34]}  Bf6 {[%clk 0:02:00]} 29. c3 {[%clk 0:01:23]}  Bh4+ {[%clk 0:01:53]} 30. Ke2 {[%clk 0:01:22]}  Bf6 {[%clk 0:01:50]} 31. Kd3 {[%clk 0:01:13]}  Ke6 {[%clk 0:01:43]} 32. Kc4 {[%clk 0:01:13]}  Be7 {[%clk 0:01:32]} 33. Be8 {[%clk 0:00:59]}  Bd6 {[%clk 0:01:29]} 34. Ra1 {[%clk 0:00:58]}  Ra7 {[%clk 0:01:22]} 35. Bc6 {[%clk 0:00:53]}  g5 {[%clk 0:01:13]} 36. Bd5+ {[%clk 0:00:50]}  Kf6 {[%clk 0:01:13]} 37. g4 {[%clk 0:00:33]}  e4 {[%clk 0:00:48]} 38. fxe4 {[%clk 0:00:22]}  fxg4 {[%clk 0:00:37]} 39. Rf1+ {[%clk 0:00:23]}  Kg6 {[%clk 0:00:34]} 40. e5 {[%clk 0:00:19]}  Bxe5 {[%clk 0:00:33]} 41. Kxc5 {[%clk 0:00:20]}  Bxh2 {[%clk 0:00:33]} 42. Be4+ {[%clk 0:00:18]}  Kg7 {[%clk 0:00:29]} 43. c4 {[%clk 0:00:14]}  g3 {[%clk 0:00:28]} 44. Kb6 {[%clk 0:00:14]}  Re7 {[%clk 0:00:26]} 45. Bd5 {[%clk 0:00:14]}  h5 {[%clk 0:00:25]} 46. c5 {[%clk 0:00:14]}  h4 {[%clk 0:00:23]} 47. c6 {[%clk 0:00:06]}  h3 {[%clk 0:00:21]} 48. Rf5 {[%clk 0:00:06]}  Bg1+ {[%clk 0:00:18]} 49. Kxa6 {[%clk 0:00:04]}  h2 {[%clk 0:00:17]} 50. Rxg5+ {[%clk 0:00:04]}  Kh6 {[%clk 0:00:18]} 51. Rxg3 {[%clk 0:00:05]}  Ra7+ {[%clk 0:00:15]} 52. Kb5 {[%clk 0:00:04]}  Re7 {[%clk 0:00:15]} 53. Rc3 {[%clk 0:00:02]}  Rc7 {[%clk 0:00:10]} 54. Bh1 {[%clk 0:00:02]}  Kg5 {[%clk 0:00:10]} 55. Kc4 {[%clk 0:00:02]}  Kf6 {[%clk 0:00:10]} 56. Kd5 {[%clk 0:00:02]}  Kf5 {[%clk 0:00:09]} 57. b4 {[%clk 0:00:02]}  Kg6 {[%clk 0:00:08]} 58. b5 {[%clk 0:00:03]}  Kf6 {[%clk 0:00:08]} 59. Rb3 {[%clk 0:00:04]}  Bb6 {[%clk 0:00:06]} 60. Rh3 {[%clk 0:00:04]}  Bg1 {[%clk 0:00:07]} 61. Rh6+ {[%clk 0:00:04]}  Kg5 {[%clk 0:00:07]} 62. Rd6 {[%clk 0:00:05]}  Bb6 {[%clk 0:00:06]} 63. Rd7 {[%clk 0:00:05]}  Kf4 {[%clk 0:00:05]} 64. Kd6 {[%clk 0:00:05]}  Rc8 {[%clk 0:00:03]} 65. Rb7 {[%clk 0:00:06]}  Bd4 {[%clk 0:00:02]} 66. Kd7 {[%clk 0:00:06]}  Rf8 {[%clk 0:00:02]} 67. c7 {[%clk 0:00:07]}  Rf7+ {[%clk 0:00:01]} 68. Kc6 {[%clk 0:00:05]} 1-0


[Site "https://www.chess.com"]

[Event "Titled Tuesday Blitz March 07 Early 2023"]
[White "Kalajzic, Ivan"]
[Black "Smietanska, Wiktoria"]
[WhiteFideId "14506378"]
[BlackFideId "21869359"]
[WhiteElo "2203"]
[BlackElo "1910"]
[Result "1-0"]
[Round "03"]
[TimeControl "180+2"]
[Date "2023.03.07"]
[WhiteClock "0:00:25"]
[BlackClock "0:00:01"]

1. b3 {[%clk 0:02:59]}  e5 {[%clk 0:02:57]} 2. Bb2 {[%clk 0:02:59]}  Nc6 {[%clk 0:02:58]} 3. e3 {[%clk 0:03:00]}  d5 {[%clk 0:02:58]} 4. Bb5 {[%clk 0:03:00]}  Bd6 {[%clk 0:02:58]} 5. f4 {[%clk 0:02:59]}  Qe7 {[%clk 0:02:35]} 6. Nf3 {[%clk 0:02:59]}  Bg4 {[%clk 0:02:28]} 7. h3 {[%clk 0:02:58]}  Bxf3 {[%clk 0:02:24]} 8. Qxf3 {[%clk 0:02:58]}  e4 {[%clk 0:02:24]} 9. Qf2 {[%clk 0:02:57]}  f6 {[%clk 0:02:20]} 10. Nc3 {[%clk 0:02:55]}  Qf7 {[%clk 0:02:16]} 11. O-O-O {[%clk 0:02:45]}  Ne7 {[%clk 0:02:15]} 12. d3 {[%clk 0:02:42]}  exd3 {[%clk 0:02:04]} 13. Rxd3 {[%clk 0:02:39]}  a6 {[%clk 0:02:04]} 14. Bxc6+ {[%clk 0:02:36]}  bxc6 {[%clk 0:02:04]} 15. e4 {[%clk 0:02:32]}  O-O {[%clk 0:01:54]} 16. g4 {[%clk 0:02:26]}  Ng6 {[%clk 0:01:44]} 17. Rf3 {[%clk 0:02:11]}  d4 {[%clk 0:01:19]} 18. Ne2 {[%clk 0:02:09]}  c5 {[%clk 0:01:18]} 19. h4 {[%clk 0:01:58]}  a5 {[%clk 0:01:16]} 20. h5 {[%clk 0:01:57]}  Ne7 {[%clk 0:01:15]} 21. Rf1 {[%clk 0:01:42]}  a4 {[%clk 0:01:08]} 22. Qg2 {[%clk 0:01:19]}  axb3 {[%clk 0:01:03]} 23. axb3 {[%clk 0:01:18]}  Qe6 {[%clk 0:00:49]} 24. R3f2 {[%clk 0:00:55]}  Rfb8 {[%clk 0:00:37]} 25. g5 {[%clk 0:00:47]}  d3 {[%clk 0:00:22]} 26. gxf6 {[%clk 0:00:39]}  Ng6 {[%clk 0:00:19]} 27. hxg6 {[%clk 0:00:38]}  h6 {[%clk 0:00:10]} 28. f5 {[%clk 0:00:33]}  Qd7 {[%clk 0:00:02]} 29. f7+ {[%clk 0:00:29]}  Kf8 {[%clk 0:00:02]} 30. f6 {[%clk 0:00:28]}  dxe2 {[%clk 0:00:01]} 31. fxg7+ {[%clk 0:00:28]}  Ke7 {[%clk 0:00:01]} 32. f8=Q+ {[%clk 0:00:28]}  Rxf8 {[%clk 0:00:01]} 33. gxf8=Q+ {[%clk 0:00:28]}  Rxf8 {[%clk 0:00:01]} 34. Rxf8 {[%clk 0:00:25]}  exf1=Q+ {[%clk 0:00:01]} 35. Qxf1 {[%clk 0:00:25]} 1-0


[Site "https://www.chess.com"]

[Event "Titled Tuesday Blitz March 07 Early 2023"]
[White "Manukian, Artak"]
[Black "SicilianPanzer"]
[WhiteFideId "13301373"]
[WhiteElo "2130"]
[BlackElo "2256"]
[Result "1-0"]
[Round "03"]
[TimeControl "180+2"]
[Date "2023.03.07"]
[WhiteClock "0:00:45"]
[BlackClock "0:00:02"]

1. e4 {[%clk 0:02:56]}  c6 {[%clk 0:02:58]} 2. d4 {[%clk 0:02:56]}  d5 {[%clk 0:02:58]} 3. e5 {[%clk 0:02:54]}  Bf5 {[%clk 0:02:55]} 4. c4 {[%clk 0:02:44]}  e6 {[%clk 0:02:52]} 5. Nc3 {[%clk 0:02:40]}  Ne7 {[%clk 0:02:48]} 6. Nf3 {[%clk 0:02:30]}  h6 {[%clk 0:02:44]} 7. Qb3 {[%clk 0:02:22]}  Qb6 {[%clk 0:02:40]} 8. c5 {[%clk 0:02:22]}  Qc7 {[%clk 0:02:37]} 9. Bf4 {[%clk 0:02:18]}  b6 {[%clk 0:02:27]} 10. cxb6 {[%clk 0:02:11]}  axb6 {[%clk 0:02:24]} 11. Rc1 {[%clk 0:02:11]}  Qa7 {[%clk 0:02:07]} 12. a3 {[%clk 0:02:10]}  Nd7 {[%clk 0:02:00]} 13. Be2 {[%clk 0:02:08]}  g5 {[%clk 0:01:52]} 14. Be3 {[%clk 0:02:05]}  Bg7 {[%clk 0:01:48]} 15. O-O {[%clk 0:02:02]}  O-O {[%clk 0:01:45]} 16. h4 {[%clk 0:02:00]}  g4 {[%clk 0:01:31]} 17. Nh2 {[%clk 0:01:59]}  h5 {[%clk 0:01:30]} 18. Rfd1 {[%clk 0:01:58]}  f6 {[%clk 0:01:16]} 19. exf6 {[%clk 0:01:55]}  Bxf6 {[%clk 0:01:09]} 20. Bg5 {[%clk 0:01:52]}  Ng6 {[%clk 0:00:49]} 21. Bxf6 {[%clk 0:01:46]}  Nxf6 {[%clk 0:00:40]} 22. g3 {[%clk 0:01:44]}  e5 {[%clk 0:00:36]} 23. dxe5 {[%clk 0:01:41]}  Nxe5 {[%clk 0:00:35]} 24. Nf1 {[%clk 0:01:38]}  Qf7 {[%clk 0:00:18]} 25. Qxb6 {[%clk 0:01:29]}  Ne4 {[%clk 0:00:17]} 26. Nxe4 {[%clk 0:01:23]}  Bxe4 {[%clk 0:00:16]} 27. Qe3 {[%clk 0:01:17]}  Rab8 {[%clk 0:00:12]} 28. Nd2 {[%clk 0:01:13]}  Rxb2 {[%clk 0:00:05]} 29. Nxe4 {[%clk 0:01:11]}  dxe4 {[%clk 0:00:04]} 30. Rf1 {[%clk 0:01:01]}  Kh8 {[%clk 0:00:01]} 31. Qh6+ {[%clk 0:00:45]}  Qh7 {[%clk 0:00:02]} 32. Qxf8+ {[%clk 0:00:45]} 1-0


[Site "https://www.chess.com"]

[Event "Titled Tuesday Blitz March 07 Early 2023"]
[White "Grunberg, Mihai-Lucian"]
[Black "Chakravarthi Reddy, M"]
[WhiteFideId "1204149"]
[BlackFideId "25009532"]
[WhiteElo "2363"]
[BlackElo "2201"]
[Result "1-0"]
[Round "03"]
[TimeControl "180+2"]
[Date "2023.03.07"]
[WhiteClock "0:00:28"]
[BlackClock "0:00:11"]

1. e4 {[%clk 0:03:00]}  g6 {[%clk 0:02:55]} 2. d4 {[%clk 0:03:00]}  Bg7 {[%clk 0:02:55]} 3. Nc3 {[%clk 0:03:00]}  d6 {[%clk 0:02:55]} 4. h4 {[%clk 0:02:59]}  h6 {[%clk 0:02:50]} 5. Bc4 {[%clk 0:02:59]}  a6 {[%clk 0:02:49]} 6. Be3 {[%clk 0:02:55]}  b5 {[%clk 0:02:48]} 7. Bb3 {[%clk 0:02:55]}  Bb7 {[%clk 0:02:48]} 8. f3 {[%clk 0:02:47]}  Nd7 {[%clk 0:02:48]} 9. Nge2 {[%clk 0:02:41]}  c5 {[%clk 0:02:43]} 10. dxc5 {[%clk 0:02:41]}  dxc5 {[%clk 0:02:43]} 11. Bd5 {[%clk 0:02:40]}  Qc7 {[%clk 0:02:36]} 12. h5 {[%clk 0:02:36]}  g5 {[%clk 0:02:34]} 13. Qd2 {[%clk 0:02:32]}  Ngf6 {[%clk 0:02:28]} 14. Bxb7 {[%clk 0:02:29]}  Qxb7 {[%clk 0:02:28]} 15. Ng3 {[%clk 0:02:29]}  e6 {[%clk 0:02:25]} 16. O-O-O {[%clk 0:02:17]}  b4 {[%clk 0:01:54]} 17. Na4 {[%clk 0:02:12]}  Qb5 {[%clk 0:01:54]} 18. b3 {[%clk 0:02:11]}  c4 {[%clk 0:01:51]} 19. f4 {[%clk 0:02:01]}  gxf4 {[%clk 0:01:34]} 20. Bxf4 {[%clk 0:02:01]}  e5 {[%clk 0:01:26]} 21. Be3 {[%clk 0:01:54]}  Rc8 {[%clk 0:01:25]} 22. Nf5 {[%clk 0:01:53]}  Bf8 {[%clk 0:01:22]} 23. Bxh6 {[%clk 0:01:36]}  Nxe4 {[%clk 0:01:22]} 24. Bxf8 {[%clk 0:01:29]}  Nxd2 {[%clk 0:01:04]} 25. Nd6+ {[%clk 0:01:29]}  Kxf8 {[%clk 0:01:04]} 26. Nxb5 {[%clk 0:01:29]}  axb5 {[%clk 0:00:42]} 27. Rxd2 {[%clk 0:01:29]}  Nf6 {[%clk 0:00:37]} 28. Nb6 {[%clk 0:01:28]}  Rc6 {[%clk 0:00:36]} 29. Nd7+ {[%clk 0:01:22]}  Nxd7 {[%clk 0:00:24]} 30. Rxd7 {[%clk 0:01:23]}  cxb3 {[%clk 0:00:23]} 31. axb3 {[%clk 0:01:21]}  Kg7 {[%clk 0:00:23]} 32. Rf1 {[%clk 0:01:17]}  Rf8 {[%clk 0:00:21]} 33. Rd5 {[%clk 0:01:14]}  f6 {[%clk 0:00:20]} 34. Rxb5 {[%clk 0:01:13]}  Rfc8 {[%clk 0:00:20]} 35. Rf2 {[%clk 0:01:13]}  Rc3 {[%clk 0:00:20]} 36. Rxb4 {[%clk 0:01:12]}  Rg3 {[%clk 0:00:18]} 37. Rb7+ {[%clk 0:01:11]}  Kh6 {[%clk 0:00:18]} 38. Rxf6+ {[%clk 0:01:10]}  Kxh5 {[%clk 0:00:19]} 39. Rh7+ {[%clk 0:01:06]}  Kg5 {[%clk 0:00:19]} 40. Rg7+ {[%clk 0:01:06]}  Kxf6 {[%clk 0:00:20]} 41. Rxg3 {[%clk 0:01:07]}  Rd8 {[%clk 0:00:20]} 42. Rd3 {[%clk 0:01:06]}  Rg8 {[%clk 0:00:19]} 43. g3 {[%clk 0:01:06]}  e4 {[%clk 0:00:19]} 44. Re3 {[%clk 0:01:04]}  Ke5 {[%clk 0:00:19]} 45. Kd2 {[%clk 0:01:03]}  Rc8 {[%clk 0:00:18]} 46. c4 {[%clk 0:01:02]}  Kd4 {[%clk 0:00:18]} 47. Re1 {[%clk 0:00:56]}  Rb8 {[%clk 0:00:17]} 48. Rb1 {[%clk 0:00:54]}  e3+ {[%clk 0:00:18]} 49. Ke2 {[%clk 0:00:54]}  Rf8 {[%clk 0:00:18]} 50. Rf1 {[%clk 0:00:50]}  Rb8 {[%clk 0:00:14]} 51. Rf4+ {[%clk 0:00:50]}  Ke5 {[%clk 0:00:14]} 52. Kxe3 {[%clk 0:00:47]}  Rxb3+ {[%clk 0:00:15]} 53. Kf2 {[%clk 0:00:48]}  Rb2+ {[%clk 0:00:16]} 54. Kf3 {[%clk 0:00:48]}  Rb3+ {[%clk 0:00:15]} 55. Kg4 {[%clk 0:00:48]}  Rc3 {[%clk 0:00:15]} 56. Kh4 {[%clk 0:00:47]}  Rc1 {[%clk 0:00:16]} 57. Kg5 {[%clk 0:00:43]}  Rg1 {[%clk 0:00:14]} 58. g4 {[%clk 0:00:43]}  Rc1 {[%clk 0:00:15]} 59. c5 {[%clk 0:00:42]}  Ke6 {[%clk 0:00:13]} 60. Rf5 {[%clk 0:00:42]}  Ke7 {[%clk 0:00:13]} 61. Kg6 {[%clk 0:00:41]}  Ra1 {[%clk 0:00:12]} 62. Rf6 {[%clk 0:00:38]}  Ra4 {[%clk 0:00:10]} 63. g5 {[%clk 0:00:38]}  Rc4 {[%clk 0:00:11]} 64. c6 {[%clk 0:00:37]}  Ke8 {[%clk 0:00:11]} 65. Kg7 {[%clk 0:00:36]}  Rg4 {[%clk 0:00:11]} 66. g6 {[%clk 0:00:36]}  Rb4 {[%clk 0:00:11]} 67. c7 {[%clk 0:00:34]}  Rb7 {[%clk 0:00:12]} 68. Rf8+ {[%clk 0:00:30]}  Ke7 {[%clk 0:00:11]} 69. c8=Q {[%clk 0:00:29]}  Kd6+ {[%clk 0:00:11]} 70. Qxb7 {[%clk 0:00:28]} 1-0


[Site "https://www.chess.com"]

[Event "Titled Tuesday Blitz March 07 Early 2023"]
[White "Castellano, Christopher"]
[Black "Mikhaylova, Irina"]
[WhiteFideId "5203651"]
[BlackFideId "4109040"]
[WhiteElo "2171"]
[BlackElo "1966"]
[Result "1-0"]
[Round "03"]
[TimeControl "180+2"]
[Date "2023.03.07"]
[WhiteClock "0:00:14"]
[BlackClock "0:00:14"]

1. d4 {[%clk 0:03:00]}  Nf6 {[%clk 0:02:59]} 2. Bf4 {[%clk 0:02:59]}  g6 {[%clk 0:02:59]} 3. e3 {[%clk 0:02:58]}  Bg7 {[%clk 0:02:59]} 4. Nf3 {[%clk 0:02:58]}  O-O {[%clk 0:03:00]} 5. h3 {[%clk 0:02:58]}  d6 {[%clk 0:03:00]} 6. Be2 {[%clk 0:02:59]}  Nc6 {[%clk 0:03:00]} 7. Bh2 {[%clk 0:02:59]}  Bf5 {[%clk 0:02:59]} 8. O-O {[%clk 0:02:58]}  Re8 {[%clk 0:03:00]} 9. c4 {[%clk 0:02:57]}  e5 {[%clk 0:02:59]} 10. Nc3 {[%clk 0:02:57]}  Ne4 {[%clk 0:02:59]} 11. Rc1 {[%clk 0:02:50]}  Nxc3 {[%clk 0:02:52]} 12. Rxc3 {[%clk 0:02:51]}  exd4 {[%clk 0:02:45]} 13. exd4 {[%clk 0:02:47]}  Be4 {[%clk 0:02:39]} 14. Re3 {[%clk 0:02:38]}  Bxf3 {[%clk 0:02:39]} 15. Rxe8+ {[%clk 0:02:35]}  Qxe8 {[%clk 0:02:38]} 16. Bxf3 {[%clk 0:02:36]}  Nxd4 {[%clk 0:02:20]} 17. Bxb7 {[%clk 0:02:34]}  Rb8 {[%clk 0:02:20]} 18. Re1 {[%clk 0:02:27]}  Qd8 {[%clk 0:02:06]} 19. Qa4 {[%clk 0:02:22]}  Bf6 {[%clk 0:01:38]} 20. b3 {[%clk 0:02:03]}  Kg7 {[%clk 0:01:38]} 21. Qxa7 {[%clk 0:01:37]}  Nc2 {[%clk 0:01:07]} 22. Rd1 {[%clk 0:01:30]}  Nd4 {[%clk 0:00:59]} 23. Rxd4 {[%clk 0:01:26]}  Rxb7 {[%clk 0:00:55]} 24. Qxb7 {[%clk 0:01:24]}  Bxd4 {[%clk 0:00:54]} 25. Qd5 {[%clk 0:01:23]}  Qf6 {[%clk 0:00:54]} 26. Bg3 {[%clk 0:01:23]}  h5 {[%clk 0:00:49]} 27. h4 {[%clk 0:01:22]}  Bb6 {[%clk 0:00:38]} 28. a4 {[%clk 0:01:15]}  Qa1+ {[%clk 0:00:33]} 29. Kh2 {[%clk 0:01:15]}  Qa2 {[%clk 0:00:33]} 30. Qf3 {[%clk 0:01:08]}  Qc2 {[%clk 0:00:26]} 31. Bf4 {[%clk 0:00:35]}  Qxf2 {[%clk 0:00:23]} 32. Bg5 {[%clk 0:00:36]}  Qxf3 {[%clk 0:00:21]} 33. gxf3 {[%clk 0:00:36]}  f6 {[%clk 0:00:21]} 34. Bd2 {[%clk 0:00:35]}  Kf7 {[%clk 0:00:21]} 35. a5 {[%clk 0:00:33]}  Ba7 {[%clk 0:00:21]} 36. b4 {[%clk 0:00:26]}  Ke6 {[%clk 0:00:21]} 37. Bc3 {[%clk 0:00:25]}  g5 {[%clk 0:00:20]} 38. Kg3 {[%clk 0:00:24]}  Kf5 {[%clk 0:00:14]} 39. Be1 {[%clk 0:00:19]}  Ke6 {[%clk 0:00:14]} 40. Bf2 {[%clk 0:00:18]}  Bb8 {[%clk 0:00:13]} 41. a6 {[%clk 0:00:18]}  c5 {[%clk 0:00:12]} 42. b5 {[%clk 0:00:17]}  Ba7 {[%clk 0:00:12]} 43. f4 {[%clk 0:00:14]}  gxh4+ {[%clk 0:00:10]} 44. Kxh4 {[%clk 0:00:13]}  d5 {[%clk 0:00:11]} 45. cxd5+ {[%clk 0:00:09]}  Kxd5 {[%clk 0:00:11]} 46. Kxh5 {[%clk 0:00:10]}  Kc4 {[%clk 0:00:11]} 47. Kg6 {[%clk 0:00:07]}  Kxb5 {[%clk 0:00:12]} 48. Kxf6 {[%clk 0:00:08]}  Kxa6 {[%clk 0:00:12]} 49. Ke6 {[%clk 0:00:08]}  Bb8 {[%clk 0:00:10]} 50. f5 {[%clk 0:00:08]}  Bc7 {[%clk 0:00:09]} 51. Bxc5 {[%clk 0:00:07]}  Bd8 {[%clk 0:00:10]} 52. Be7 {[%clk 0:00:07]}  Ba5 {[%clk 0:00:10]} 53. f6 {[%clk 0:00:07]}  Bc3 {[%clk 0:00:10]} 54. f7 {[%clk 0:00:08]}  Bg7 {[%clk 0:00:11]} 55. Bf6 {[%clk 0:00:08]}  Bf8 {[%clk 0:00:11]} 56. Be7 {[%clk 0:00:08]}  Bg7 {[%clk 0:00:11]} 57. Kf5 {[%clk 0:00:09]}  Kb7 {[%clk 0:00:10]} 58. Kg6 {[%clk 0:00:09]}  Bf8 {[%clk 0:00:10]} 59. Bxf8 {[%clk 0:00:09]}  Kc6 {[%clk 0:00:11]} 60. Bg7 {[%clk 0:00:10]}  Kd7 {[%clk 0:00:12]} 61. f8=Q {[%clk 0:00:11]}  Ke6 {[%clk 0:00:12]} 62. Qf6+ {[%clk 0:00:12]}  Kd5 {[%clk 0:00:13]} 63. Qe5+ {[%clk 0:00:13]}  Kc4 {[%clk 0:00:14]} 64. Kf5 {[%clk 0:00:14]}  Kb3 {[%clk 0:00:14]} 65. Ke4 {[%clk 0:00:14]} 1-0


[Site "https://www.chess.com"]